[Event "Turkish Club Cup 2019"]
[Site "Konya"]
[Date "2019.07.17"]
[Round "2"]
[White "Ince, Eray"]
[Black "Arslan, Hasan Bahadir"]
[Result "1-0"]
[ECO "A30"]
[WhiteElo "1459"]
[BlackElo "1377"]
[Annotator "NA"]
[PlyCount "71"]
[EventDate "2019.07.16"]
[EventType "team-tourn"]
[EventCountry "TUR"]
[SourceTitle "playchess.com"]
[Source "ChessBase"]
[SourceQuality "1"]
[TimeControl "5400+30"]

1. Nf3 {[%emt 0:00:30]} Nf6 {[%emt 0:00:30]} 2. e3 {[%emt 0:00:30]} b6 {[%emt 0:00:30]} 3. b3 {[%emt 0:00:00]} Bb7 {[%emt 0:01:30]} 4. Bb2 {[%emt 0:00:00]} e6 {[%emt 0:00:30]} 5. Be2 {[%emt 0:00:30]} Be7 {[%emt 0:01:30]} 6. O-O {[%emt 0:00:30]} O-O {[%emt 0:00:30]} 7. d4 {[%emt 0:00:30]} c5 {[%emt 0:02:30]} 8. c4 {[%emt 0:01:30]} d6 {[%emt 0:11:30]} 9. Nc3 {[%emt 0:02:30]} a6 {[%emt 0:06:30]} 10. Rc1 {[%emt 0:06:30]} Nbd7 {[%emt 0:03:30]} 11. Rc2 {[%emt 0:05:30]} Qc7 {[%emt 0:05:30]} 12. Rd2 {[%emt 0:04:30]} Rfd8 {[%emt 0:10:30]} 13. Qa1 {[%emt 0:05:30]} Nf8 {[%emt 0:10:30]} 14. Rfd1 {[%emt 0:05:30]} Ng6 {[%emt 0:02:30]} 15. d5 {[%emt 0:09:30]} e5 {[%emt 0:02:30]} 16. Bd3 {[%emt 0:00:00]} Bc8 {[%emt 0:01:30]} 17. Bxg6 {[%emt 0:01:00]} hxg6 {[%emt 0:01:30]} 18. h3 {[%emt 0:01:30]} Bf5 {[%emt 0:14:30]} 19. Ng5 {[%emt 0:05:30]} Nh7 {[%emt 0:02:32]} 20. Nxh7 {[%emt 0:01:30]} Kxh7 {[%emt 0:00:03]} 21. e4 {[%emt 0:01:30]} Bd7 {[%emt 0:01:45]} 22. f4 {[%emt 0:03:30]} Bf6 {[%emt 0:05:16]} 23. Ne2 {[%emt 0:04:30]} Re8 {[%emt 0:03:23]} 24. Rf1 {[%emt 0:02:30]} Kg8 {[%emt 0:01:23]} 25. Ng3 {[%emt 0:03:30]} Qd8 {[%emt 0:03:20]} 26. Rdf2 {[%emt 0:04:30]} Bh4 {[%emt 0:02:35]} 27. Rf3 {[%emt 0:00:00]} exf4 {[%emt 0:02:05]} 28. Bxg7 {[%emt 0:04:00]} f6 {[%emt 0:00:30]} 29. Rxf4 {[%emt 0:00:30]} Kxg7 {[%emt 0:00:30]} 30. Rxh4 {[%emt 0:00:30]} Rf8 {[%emt 0:00:30]} 31. Qc1 {[%emt 0:00:30]} g5 {[%emt 0:00:30]} 32. Rh5 {[%emt 0:00:30]} Kg6 {[%emt 0:02:55]} 33. Qc2 {[%emt 0:08:56]} Rh8 {[%emt 0:00:40]} 34. e5+ {[%emt 0:00:17]} Kg7 {[%emt 0:00:29]} 35. exf6+ {[%emt 0:00:22]} Kf7 {[%emt 0:00:10]} 36. Rh7+ {[%emt 0:00:07]} 1-0

[Event "Turkish Club Cup 2019"]
[Site "Konya"]
[Date "2019.07.17"]
[Round "2"]
[White "Eraslan, Ecem"]
[Black "Sural, Ceren"]
[Result "1-0"]
[ECO "B01"]
[WhiteElo "1397"]
[BlackElo "1622"]
[Annotator "NA"]
[PlyCount "99"]
[EventDate "2019.07.16"]
[EventType "team-tourn"]
[EventCountry "TUR"]
[SourceTitle "playchess.com"]
[Source "ChessBase"]
[SourceQuality "1"]
[TimeControl "5400+30"]

1. e4 {[%emt 0:00:30]} d5 {[%emt 0:00:30]} 2. exd5 {[%emt 0:00:30]} Qxd5 {[%emt 0:00:00]} 3. d4 {[%emt 0:00:00]} c6 {[%emt 0:02:00]} 4. Nf3 {[%emt 0:00:00]} Bg4 {[%emt 0:03:30]} 5. Be2 {[%emt 0:03:30]} Nf6 {[%emt 0:00:30]} 6. O-O {[%emt 0:01:30]} e6 {[%emt 0:05:30]} 7. c4 {[%emt 0:01:30]} Qd8 {[%emt 0:01:30]} 8. Nc3 {[%emt 0:00:30]} Bd6 {[%emt 0:01:30]} 9. h3 {[%emt 0:01:30]} Bh5 {[%emt 0:01:30]} 10. Ne5 {[%emt 0:10:30]} Bg6 {[%emt 0:04:30]} 11. Bf4 {[%emt 0:15:30]} O-O {[%emt 0:05:30]} 12. Nxg6 {[%emt 0:06:30]} hxg6 {[%emt 0:01:30]} 13. Qd2 {[%emt 0:04:30]} Bb4 {[%emt 0:15:30]} 14. Bf3 {[%emt 0:06:30]} Nbd7 {[%emt 0:02:30]} 15. a3 {[%emt 0:02:30]} Ba5 {[%emt 0:05:30]} 16. b4 {[%emt 0:14:30]} Bb6 {[%emt 0:05:30]} 17. Rfe1 {[%emt 0:02:30]} Re8 {[%emt 0:06:30]} 18. d5 {[%emt 0:03:30]} cxd5 {[%emt 0:02:30]} 19. cxd5 {[%emt 0:01:30]} e5 {[%emt 0:02:30]} 20. Bg5 {[%emt 0:05:35]} Bd4 {[%emt 0:05:30]} 21. Rac1 {[%emt 0:01:24]} a6 {[%emt 0:01:30]} 22. Ne4 {[%emt 0:09:16]} Nb6 {[%emt 0:03:30]} 23. Nc5 {[%emt 0:02:04]} Rb8 {[%emt 0:06:08]} 24. d6 {[%emt 0:01:07]} Qxd6 {[%emt 0:03:06]} 25. Nxb7 {[%emt 0:00:45]} Qf8 {[%emt 0:03:40]} 26. Nc5 {[%emt 0:01:03]} Red8 {[%emt 0:03:54]} 27. Nxa6 {[%emt 0:00:54]} Rbc8 {[%emt 0:00:32]} 28. Rxc8 {[%emt 0:00:48]} Rxc8 {[%emt 0:00:22]} 29. Rc1 {[%emt 0:00:26]} Nc4 {[%emt 0:00:46]} 30. Qd3 {[%emt 0:00:42]} Nb2 {[%emt 0:03:26]} 31. Rxc8 {[%emt 0:01:44]} Bxf2+ {[%emt 0:02:06]} 32. Kf1 {[%emt 0:00:30]} Qxc8 {[%emt 0:00:00]} 33. Qd2 {[%emt 0:00:28]} Qxa6+ {[%emt 0:01:56]} 34. Kxf2 {[%emt 0:00:30]} Qxa3 {[%emt 0:00:00]} 35. Qd8+ {[%emt 0:00:07]} Kh7 {[%emt 0:00:21]} 36. Bxf6 {[%emt 0:00:16]} gxf6 {[%emt 0:01:11]} 37. Qxf6 {[%emt 0:00:13]} Qa2 {[%emt 0:00:16]} 38. Kg1 {[%emt 0:00:49]} Nd3 {[%emt 0:00:28]} 39. b5 {[%emt 0:00:21]} Qa1+ {[%emt 0:01:06]} 40. Kh2 {[%emt 0:00:39]} Qa7 {[%emt 0:00:31]} 41. b6 {[%emt 0:00:00]} Qb8 {[%emt 0:00:44]} 42. Qxf7+ {[%emt 0:00:14]} Kh6 {[%emt 0:00:11]} 43. Be4 {[%emt 0:00:59]} Nf4 {[%emt 0:00:08]} 44. b7 {[%emt 0:00:49]} Qd8 {[%emt 0:00:24]} 45. Qc4 {[%emt 0:00:26]} Nxh3 {[%emt 0:01:29]} 46. gxh3 {[%emt 0:01:05]} Qd2+ {[%emt 0:00:11]} 47. Bg2 {[%emt 0:00:16]} Qd6 {[%emt 0:00:03]} 48. Qc6 {[%emt 0:01:10]} Qd2 {[%emt 0:00:22]} 49. b8=Q {[%emt 0:00:51]} Qf4+ {[%emt 0:00:30]} 50. Kh1 {[%emt 0:00:00]} 1-0

[Event "Turkish Club Cup 2019"]
[Site "Konya"]
[Date "2019.07.17"]
[Round "2"]
[White "Baycu, Arda"]
[Black "Kiziltas, Inanc Vefa"]
[Result "1/2-1/2"]
[ECO "B11"]
[WhiteElo "1394"]
[BlackElo "1858"]
[Annotator "NA"]
[PlyCount "82"]
[EventDate "2019.07.16"]
[EventType "team-tourn"]
[EventCountry "TUR"]
[SourceTitle "playchess.com"]
[Source "ChessBase"]
[SourceQuality "1"]
[TimeControl "5400+30"]

1. e4 {[%emt 0:00:30]} c6 {[%emt 0:00:30]} 2. Nc3 {[%emt 0:01:30]} d5 {[%emt 0:00:00]} 3. Nf3 {[%emt 0:00:30]} d4 {[%emt 0:00:00]} 4. Ne2 {[%emt 0:00:30]} c5 {[%emt 0:00:30]} 5. c3 {[%emt 0:00:30]} Bg4 {[%emt 0:03:30]} (5... Nc6 6. cxd4 cxd4 7. Qa4 b5 8. Qxb5 Bd7 9. Ne5 Qc7 10. Nxd7 Qxd7 11. Nf4 e6 12. Qa4 Bd6 13. Nh5 {½-½ (39) Pavlovic,M (2482)-Foisor,S (2317) Princeton 2012}) 6. Ne5 {[%emt 0:01:30] B11: Caro-Kann: Two Knights Variation} Bxe2 {[%emt 0:02:30]} 7. Qxe2 $146 {[%emt 0:02:30]} ({Predecessor:} 7. Qb3 c4 8. Qb5+ Nd7 9. Bxe2 d3 10. Bd1 Ngf6 11. Nxd7 Nxd7 12. Qxc4 Nb6 13. Qb5+ {1-0 (30) Pitzanti,M (2175)-Vaino,N (1781) Khanty-Mansiysk 2016}) 7... a6 {[%emt 0:04:30]} 8. Qc4 {[%emt 0:04:30]} e6 {[%emt 0:00:30]} 9. Qa4+ {[%emt 0:15:30]} Nd7 {[%emt 0:00:30]} 10. Qxd7+ {[%emt 0:04:30]} Qxd7 {[%emt 0:00:30]} 11. Nxd7 {[%emt 0:00:30]} Kxd7 {[%emt 0:00:00]} 12. cxd4 {[%emt 0:00:30]} cxd4 {[%emt 0:00:00]} 13. Bc4 {[%emt 0:00:00]} Rc8 {[%emt 0:03:30]} 14. d3 {[%emt 0:01:00]} Bb4+ {[%emt 0:00:30]} 15. Ke2 {[%emt 0:02:30]} Nf6 {[%emt 0:01:30]} 16. a3 {[%emt 0:00:00]} Be7 {[%emt 0:00:30]} 17. f3 {[%emt 0:01:00]} Ne8 {[%emt 0:08:30]} 18. Bd2 {[%emt 0:04:30]} g5 {[%emt 0:02:30]} 19. Rac1 {[%emt 0:02:30]} Nd6 {[%emt 0:01:30]} 20. g3 {[%emt 0:03:30]} f5 {[%emt 0:03:30]} 21. Ba2 {[%emt 0:06:30]} h5 {[%emt 0:07:30]} 22. Rxc8 {[%emt 0:05:30]} Rxc8 {[%emt 0:02:30]} 23. Rc1 {[%emt 0:00:30]} Rxc1 {[%emt 0:01:30]} 24. Bxc1 {[%emt 0:00:00]} h4 {[%emt 0:02:30]} 25. gxh4 {[%emt 0:03:00]} gxh4 {[%emt 0:00:00]} 26. h3 {[%emt 0:00:30]} e5 {[%emt 0:01:00]} 27. Bd5 {[%emt 0:00:30]} f4 {[%emt 0:01:30]} 28. Bd2 {[%emt 0:01:30]} b6 $11 {[%emt 0:01:30]} 29. Bb4 {[%emt 0:03:30]} Nc8 {[%emt 0:00:30]} 30. Bb7 {[%emt 0:01:30]} Bxb4 {[%emt 0:26:30]} 31. Bxc8+ {[%emt 0:01:30]} Kxc8 {[%emt 0:00:30]} 32. axb4 {[%emt 0:00:30]} Kc7 {[%emt 0:00:30]} 33. Kd2 {[%emt 0:00:30]} a5 {[%emt 0:15:51]} 34. Kc2 {[%emt 0:04:30]} a4 {[%emt 0:00:52]} 35. b3 {[%emt 0:00:30]} a3 {[%emt 0:00:20]} 36. Kb1 {[%emt 0:00:30]} Kd6 {[%emt 0:00:30]} 37. Ka2 {[%emt 0:00:30]} Kc6 {[%emt 0:00:30]} 38. b5+ {[%emt 0:00:30]} Kxb5 {[%emt 0:00:30]} 39. Kxa3 {[%emt 0:00:30]} Ka5 {[%emt 0:00:30]} 40. b4+ {[%emt 0:00:30]} Ka6 {[%emt 0:00:30]} 41. Ka2 {[%emt 0:00:30]} b5 {[%emt 0:00:30]} 1/2-1/2

[Event "Turkish Club Cup 2019"]
[Site "Konya"]
[Date "2019.07.17"]
[Round "2"]
[White "Yalcin, Nehir"]
[Black "Kucuk, Aybike"]
[Result "0-1"]
[ECO "B92"]
[WhiteElo "1392"]
[BlackElo "1266"]
[Annotator "NA"]
[PlyCount "70"]
[EventDate "2019.07.16"]
[EventType "team-tourn"]
[EventCountry "TUR"]
[SourceTitle "playchess.com"]
[Source "ChessBase"]
[SourceQuality "1"]
[TimeControl "5400+30"]

1. e4 {[%emt 0:00:30]} c5 {[%emt 0:00:30]} 2. Nf3 {[%emt 0:00:30]} d6 {[%emt 0:00:00]} 3. d4 {[%emt 0:00:00]} cxd4 {[%emt 0:00:00]} 4. Nxd4 {[%emt 0:00:00]} Nf6 {[%emt 0:00:30]} 5. f3 {[%emt 0:00:30]} e5 {[%emt 0:01:30]} 6. Nb3 {[%emt 0:00:30]} Be6 {[%emt 0:00:30]} 7. Be3 {[%emt 0:00:30]} Be7 {[%emt 0:00:30]} 8. Be2 {[%emt 0:01:30]} Nbd7 {[%emt 0:02:30]} 9. O-O {[%emt 0:03:30]} O-O {[%emt 0:00:00]} 10. Nc3 {[%emt 0:03:30]} a6 {[%emt 0:03:00]} 11. Qd2 {[%emt 0:06:30]} Nc5 {[%emt 0:05:30]} 12. Rfd1 {[%emt 0:02:30]} Rc8 {[%emt 0:05:30]} 13. Bf1 {[%emt 0:03:30]} Qc7 {[%emt 0:03:30]} 14. Qf2 {[%emt 0:03:30]} Rfd8 {[%emt 0:02:30]} 15. Rd2 {[%emt 0:06:30]} d5 {[%emt 0:14:30]} 16. exd5 {[%emt 0:02:30]} Nxb3 {[%emt 0:09:30]} 17. axb3 {[%emt 0:09:30]} Nxd5 {[%emt 0:00:30]} 18. Nxd5 {[%emt 0:01:30]} Rxd5 {[%emt 0:00:30]} 19. Bd3 {[%emt 0:02:30]} Bc5 {[%emt 0:04:30]} 20. Kh1 {[%emt 0:02:30]} Bxe3 {[%emt 0:03:30]} 21. Qxe3 {[%emt 0:04:30]} Rcd8 {[%emt 0:02:30]} 22. Re2 {[%emt 0:03:30]} Qc5 {[%emt 0:07:30]} 23. Qg5 {[%emt 0:06:30]} e4 {[%emt 0:02:30]} 24. Qg3 {[%emt 0:16:07]} exd3 {[%emt 0:00:30]} 25. cxd3 {[%emt 0:00:58]} Rxd3 {[%emt 0:00:30]} 26. Ree1 {[%emt 0:01:07]} Qd6 {[%emt 0:01:30]} 27. Qf2 {[%emt 0:04:53]} Rd1 {[%emt 0:03:30]} 28. Qf1 {[%emt 0:03:41]} Bxb3 {[%emt 0:01:30]} 29. Qe2 {[%emt 0:01:50]} Rxa1 {[%emt 0:01:30]} 30. Rxa1 {[%emt 0:01:30]} Qd1+ {[%emt 0:01:30]} 31. Rxd1 {[%emt 0:02:30]} Rxd1+ {[%emt 0:00:00]} 32. Qxd1 {[%emt 0:01:05]} Bxd1 {[%emt 0:00:00]} 33. Kg1 {[%emt 0:00:17]} Bxf3 {[%emt 0:00:30]} 34. gxf3 {[%emt 0:00:30]} Kf8 {[%emt 0:00:00]} 35. Kf2 {[%emt 0:01:39]} Ke7 {[%emt 0:00:00]} 0-1

[Event "Turkish Club Cup 2019"]
[Site "Konya"]
[Date "2019.07.17"]
[Round "2"]
[White "Unal, Beren"]
[Black "Asan, Elvan"]
[Result "0-1"]
[ECO "B07"]
[WhiteElo "1391"]
[BlackElo "1760"]
[Annotator "NA"]
[PlyCount "127"]
[EventDate "2019.07.16"]
[EventType "team-tourn"]
[EventCountry "TUR"]
[SourceTitle "playchess.com"]
[Source "ChessBase"]
[SourceQuality "1"]
[TimeControl "5400+30"]

1. e4 {[%emt 0:00:30]} d6 {[%emt 0:01:30]} 2. d4 {[%emt 0:00:00]} g6 {[%emt 0:00:30]} 3. Nc3 {[%emt 0:01:00]} Bg7 {[%emt 0:00:30]} 4. Be3 {[%emt 0:00:30]} Nf6 {[%emt 0:02:30]} 5. f3 {[%emt 0:00:30]} Nbd7 {[%emt 0:09:30]} 6. Qd2 {[%emt 0:02:30]} e5 {[%emt 0:04:30]} 7. Nge2 {[%emt 0:04:30]} O-O {[%emt 0:06:30]} 8. g4 {[%emt 0:03:30]} Nb6 {[%emt 0:02:30]} 9. Ng3 {[%emt 0:05:30]} Nfd7 {[%emt 0:05:30]} 10. O-O-O {[%emt 0:08:30]} exd4 {[%emt 0:03:30]} 11. Bxd4 {[%emt 0:00:00]} Ne5 {[%emt 0:01:30]} 12. Be2 {[%emt 0:07:00]} Nbc4 {[%emt 0:08:30]} 13. Bxc4 {[%emt 0:30:30]} Nxc4 {[%emt 0:03:30]} 14. Qe2 {[%emt 0:00:30]} Bxd4 {[%emt 0:19:30]} 15. Rxd4 {[%emt 0:07:30]} Qg5+ {[%emt 0:03:30]} 16. Kb1 {[%emt 0:02:30]} Nb6 {[%emt 0:02:30]} 17. Rdd1 {[%emt 0:08:01]} Be6 {[%emt 0:02:30]} 18. h4 {[%emt 0:02:43]} Qf4 {[%emt 0:03:34]} 19. Nf1 {[%emt 0:04:28]} a5 {[%emt 0:02:43]} 20. Ne3 {[%emt 0:01:44]} a4 {[%emt 0:00:30]} 21. a3 {[%emt 0:00:30]} Ra5 {[%emt 0:00:30]} 22. h5 {[%emt 0:00:30]} Rc5 {[%emt 0:00:30]} 23. hxg6 {[%emt 0:00:30]} fxg6 {[%emt 0:00:30]} 24. Ned5 {[%emt 0:06:33]} Bxd5 {[%emt 0:04:36]} 25. exd5 {[%emt 0:00:17]} Qxf3 {[%emt 0:00:49]} 26. Qh2 {[%emt 0:00:47]} Rf7 {[%emt 0:02:14]} 27. Rde1 {[%emt 0:01:04]} h5 {[%emt 0:04:08]} 28. gxh5 {[%emt 0:00:44]} gxh5 {[%emt 0:00:23]} 29. Re8+ {[%emt 0:00:36]} Kh7 {[%emt 0:00:55]} 30. Ree1 {[%emt 0:00:22]} Nc4 {[%emt 0:01:05]} 31. Ref1 {[%emt 0:00:33]} Qxf1+ {[%emt 0:01:39]} 32. Rxf1 {[%emt 0:00:01]} Rxf1+ {[%emt 0:00:13]} 33. Ka2 {[%emt 0:00:04]} Rf5 {[%emt 0:00:38]} 34. Qe2 {[%emt 0:00:37]} Ne5 {[%emt 0:00:11]} 35. Qe4 {[%emt 0:00:40]} Kg6 {[%emt 0:01:10]} 36. Qxa4 {[%emt 0:00:27]} Rc4 {[%emt 0:00:16]} 37. Qe8+ {[%emt 0:00:14]} Kg5 {[%emt 0:00:11]} 38. Qe7+ {[%emt 0:00:21]} Kg4 {[%emt 0:00:10]} 39. Qg7+ {[%emt 0:00:40]} Rg5 {[%emt 0:00:06]} 40. Qf6 {[%emt 0:00:41]} h4 {[%emt 0:01:30]} 41. Qf2 {[%emt 0:00:36]} Rf4 {[%emt 0:00:30]} 42. Qg2+ {[%emt 0:00:18]} Kh5 {[%emt 0:00:14]} 43. Qe2+ {[%emt 0:00:15]} Rgg4 {[%emt 0:00:37]} 44. Nd1 {[%emt 0:00:31]} Re4 {[%emt 0:01:35]} 45. Qb5 {[%emt 0:00:43]} Rgf4 {[%emt 0:00:56]} 46. Nc3 {[%emt 0:00:34]} Re3 {[%emt 0:00:39]} 47. Qxb7 {[%emt 0:00:39]} Rc4 {[%emt 0:01:10]} 48. Qc8 {[%emt 0:00:28]} h3 {[%emt 0:00:30]} 49. Qh8+ {[%emt 0:00:37]} Kg4 {[%emt 0:00:07]} 50. Qg7+ {[%emt 0:00:00]} Kf3 {[%emt 0:00:28]} 51. Qh6 {[%emt 0:00:29]} Rcxc3 {[%emt 0:01:09]} 52. Qxh3+ {[%emt 0:00:57]} Ke4 {[%emt 0:00:23]} 53. Qh1+ {[%emt 0:00:17]} Kd4 {[%emt 0:00:19]} 54. bxc3+ {[%emt 0:00:04]} Rxc3 {[%emt 0:00:16]} 55. Qd1+ {[%emt 0:00:45]} Kc5 {[%emt 0:00:17]} 56. Kb2 {[%emt 0:00:16]} Rf3 {[%emt 0:00:38]} 57. Qg1+ {[%emt 0:00:33]} Kxd5 {[%emt 0:00:35]} 58. Qg8+ {[%emt 0:00:05]} Kc5 {[%emt 0:00:00]} 59. Qg1+ {[%emt 0:00:09]} Kb5 {[%emt 0:00:45]} 60. Qb1 {[%emt 0:02:26]} Nc4+ {[%emt 0:00:22]} 61. Kc1+ {[%emt 0:00:51]} Kc6 {[%emt 0:00:08]} 62. c3 {[%emt 0:00:26]} Rf1+ {[%emt 0:00:30]} 63. Kc2 {[%emt 0:00:02]} Nxa3+ {[%emt 0:00:13]} 64. Kb2 {[%emt 0:00:42]} 0-1

[Event "Turkish Club Cup 2019"]
[Site "Konya"]
[Date "2019.07.17"]
[Round "2"]
[White "Yalcin, Sudenaz"]
[Black "Kurnaz, Azra"]
[Result "1-0"]
[ECO "C56"]
[WhiteElo "1371"]
[BlackElo "1268"]
[Annotator "NA"]
[PlyCount "138"]
[EventDate "2019.07.16"]
[EventType "team-tourn"]
[EventCountry "TUR"]
[SourceTitle "playchess.com"]
[Source "ChessBase"]
[SourceQuality "1"]
[TimeControl "5400+30"]

1. e4 {[%emt 0:00:30]} e5 {[%emt 0:00:30]} 2. Nf3 {[%emt 0:00:00]} Nc6 {[%emt 0:00:00]} 3. d4 {[%emt 0:00:00]} exd4 {[%emt 0:00:00]} 4. Bc4 {[%emt 0:00:30]} Nf6 {[%emt 0:00:30]} 5. Ng5 {[%emt 0:02:30]} d5 {[%emt 0:12:30]} 6. exd5 {[%emt 0:00:30]} Nxd5 {[%emt 0:00:30]} 7. O-O {[%emt 0:00:30]} Nce7 {[%emt 0:08:30]} 8. Qxd4 {[%emt 0:05:30]} h6 {[%emt 0:02:30]} 9. Nf3 {[%emt 0:01:30]} Be6 {[%emt 0:01:30]} 10. Re1 {[%emt 0:02:30]} Qd6 {[%emt 0:15:30]} 11. Nbd2 {[%emt 0:04:30]} Nb4 {[%emt 0:12:30]} 12. Qc3 {[%emt 0:02:30]} Nbd5 {[%emt 0:01:30]} 13. Qb3 {[%emt 0:01:30]} O-O-O {[%emt 0:03:30]} 14. Ne4 {[%emt 0:02:30]} Qb6 {[%emt 0:01:30]} 15. Bd2 {[%emt 0:03:30]} Ng6 {[%emt 0:02:30]} 16. c3 {[%emt 0:04:30]} Ngf4 {[%emt 0:07:30]} 17. Nd4 {[%emt 0:04:30]} Qxb3 {[%emt 0:01:30]} 18. axb3 {[%emt 0:00:30]} g5 {[%emt 0:03:30]} 19. Nxe6 {[%emt 0:02:30]} Nxe6 {[%emt 0:00:30]} 20. Rxa7 {[%emt 0:00:30]} c6 {[%emt 0:01:30]} 21. b4 {[%emt 0:10:30]} Bg7 {[%emt 0:02:30]} 22. b5 {[%emt 0:05:30]} cxb5 {[%emt 0:02:35]} 23. Bxb5 {[%emt 0:00:30]} Nec7 {[%emt 0:01:02]} 24. Be2 {[%emt 0:03:30]} Rhe8 {[%emt 0:01:02]} 25. Nc5 {[%emt 0:02:30]} f5 {[%emt 0:03:16]} 26. Bf3 {[%emt 0:04:30]} Rxe1+ {[%emt 0:01:40]} 27. Bxe1 {[%emt 0:00:30]} g4 {[%emt 0:00:45]} 28. Be2 {[%emt 0:02:30]} Re8 {[%emt 0:01:08]} 29. Kf1 {[%emt 0:00:30]} Nf4 {[%emt 0:00:21]} 30. Bc4 {[%emt 0:00:30]} Nxg2 {[%emt 0:01:53]} 31. Bd2 {[%emt 0:01:30]} Nh4 {[%emt 0:00:26]} 32. Bf4 {[%emt 0:00:30]} Be5 {[%emt 0:01:03]} 33. Bg3 {[%emt 0:02:30]} Bxg3 {[%emt 0:00:29]} 34. hxg3 {[%emt 0:00:30]} Nf3 {[%emt 0:00:08]} 35. Be2 {[%emt 0:03:30]} Re5 {[%emt 0:00:30]} 36. Nd3 {[%emt 0:00:30]} Nd2+ {[%emt 0:00:30]} 37. Ke1 {[%emt 0:00:30]} Nf3+ {[%emt 0:00:30]} 38. Kd1 {[%emt 0:00:30]} Re7 {[%emt 0:00:30]} 39. Ra5 {[%emt 0:00:30]} Ng1 {[%emt 0:00:30]} 40. Bf1 {[%emt 0:00:30]} Rf7 {[%emt 0:00:30]} 41. Nf4 {[%emt 0:03:30]} Rd7+ {[%emt 0:05:58]} 42. Kc2 {[%emt 0:00:30]} Nf3 {[%emt 0:00:23]} 43. Nd3 {[%emt 0:01:30]} Rf7 {[%emt 0:01:19]} 44. Be2 {[%emt 0:02:30]} Re7 {[%emt 0:00:35]} 45. Bxf3 {[%emt 0:01:30]} gxf3 {[%emt 0:00:30]} 46. Rxf5 {[%emt 0:00:00]} Re2+ {[%emt 0:00:13]} 47. Kb3 {[%emt 0:00:00]} Rd2 {[%emt 0:00:08]} 48. Rxf3 {[%emt 0:00:30]} Ne6 {[%emt 0:00:33]} 49. Kc4 {[%emt 0:02:49]} Ng5 {[%emt 0:00:23]} 50. Rf6 {[%emt 0:00:43]} Ne4 {[%emt 0:00:41]} 51. Rxh6 {[%emt 0:01:42]} Nxf2 {[%emt 0:00:43]} 52. Nxf2 {[%emt 0:00:30]} Rxf2 {[%emt 0:00:00]} 53. b4 {[%emt 0:00:00]} Rf3 {[%emt 0:00:21]} 54. Rg6 {[%emt 0:00:00]} Kc7 {[%emt 0:00:00]} 55. g4 {[%emt 0:00:23]} Rg3 {[%emt 0:00:06]} 56. g5 {[%emt 0:00:20]} Rg4+ {[%emt 0:00:12]} 57. Kc5 {[%emt 0:01:10]} b6+ {[%emt 0:00:19]} 58. Kb5 {[%emt 0:00:09]} Rg3 {[%emt 0:00:26]} 59. c4 {[%emt 0:00:02]} Rg4 {[%emt 0:00:22]} 60. Rg7+ {[%emt 0:01:00]} Kd8 {[%emt 0:00:10]} 61. g6 {[%emt 0:00:13]} Ke8 {[%emt 0:00:09]} 62. Rg8+ {[%emt 0:00:22]} Ke7 {[%emt 0:00:12]} 63. Rg7+ {[%emt 0:00:28]} Kf8 {[%emt 0:00:17]} 64. Rf7+ {[%emt 0:00:05]} Ke8 {[%emt 0:01:11]} 65. Rf6 {[%emt 0:00:07]} Rg5+ {[%emt 0:00:20]} 66. Kxb6 {[%emt 0:00:05]} Ke7 {[%emt 0:00:21]} 67. Rc6 {[%emt 0:00:22]} Kf8 {[%emt 0:00:00]} 68. c5 {[%emt 0:00:30]} Kg7 {[%emt 0:00:30]} 69. b5 {[%emt 0:00:00]} Rxg6 {[%emt 0:00:19]} 1-0

[Event "Turkish Club Cup 2019"]
[Site "Konya"]
[Date "2019.07.17"]
[Round "2"]
[White "Barutcu, Sevil"]
[Black "Kocyigit, Buse Naz"]
[Result "0-1"]
[ECO "B51"]
[WhiteElo "1348"]
[BlackElo "2045"]
[Annotator "NA"]
[PlyCount "138"]
[EventDate "2019.07.16"]
[EventType "team-tourn"]
[EventCountry "TUR"]
[SourceTitle "playchess.com"]
[Source "ChessBase"]
[SourceQuality "1"]
[TimeControl "5400+30"]

1. e4 c5 2. Nf3 d6 3. Bb5+ Nd7 4. O-O a6 5. Bxd7+ Bxd7 6. c3 Nf6 {B51: Sicilian: Moscow Variation (3 Bb5+) without 3...Bd7} (6... e6 7. d4 Ne7 8. Nbd2 Ng6 9. d5 Be7 10. Re1 O-O 11. Nf1 e5 12. Ng3 Nh4 13. Nxh4 Bxh4 14. Nf5 {½-½ (31) Ma,Q (2559)-Yu,Y (2675) Xinghua 2013}) 7. Re1 e6 8. d4 cxd4 9. cxd4 Be7 10. Nc3 O-O 11. h3 Ne8 $146 ({Predecessor:} 11... b5 12. a3 Rc8 13. e5 Nd5 14. Nxd5 exd5 {0-1 (55) Geisshirt,M (2021)-Mager,D (2259) Erfurt 2015}) 12. Qb3 Rb8 13. Bf4 b5 14. Ne2 Qb6 15. Rac1 Nc7 16. Rc2 Rfc8 17. Rec1 a5 18. Qe3 Na8 19. Nh2 Qb7 20. b3 Rxc2 21. Rxc2 Rc8 22. Rxc8+ Qxc8 23. Qd2 b4 24. Nf1 Qb7 25. Neg3 Nc7 26. Qc2 Nb5 27. Ne2 Na3 28. Qd3 Bb5 29. Qf3 Nb1 30. Nfg3 Qc7 31. Qe3 e5 32. dxe5 dxe5 33. Qc1 Nc3 34. Bd2 Nxe2+ 35. Nxe2 Qxc1+ 36. Nxc1 Bc5 37. g3 f6 38. Kg2 Bd4 39. g4 Kf7 40. Kf3 Ke6 41. Be3 Kd6 42. Ne2 Bxe3 43. fxe3 Bd3 44. Nc1 Bb1 45. h4 g5 46. h5 h6 47. Ke2 Bxe4 48. Nd3 Kd5 49. Nc1 Bb1 50. Kf3 e4+ 51. Kf2 Ke5 52. Kg2 f5 53. gxf5 Kxf5 54. Kg3 Bd3 55. Kh3 Ke5 56. Kg3 Kf5 57. Kh3 Bf1+ 58. Kg3 g4 59. Kh4 $19 Bd3 60. Kg3 Kg5 61. Kg2 Kxh5 62. Kg3 Kg5 63. Kg2 h5 64. Kg3 h4+ 65. Kg2 g3 66. Kg1 Kg4 67. Kg2 h3+ 68. Kg1 Kf3 69. Kh1 Bf1 0-1